bitfinex-derivatives/quotes_BTCF0:USTF0_20250212
["timestamp","ask_amount","ask_price","bid_price","bid_amount"]
[1739345961182,0.01771437,96250.0,96249.0,0.00183563]
[1739345962186,0.01671437,96250.0,96249.0,0.00183563]
[1739345962571,0.01771437,96250.0,96249.0,0.00283563]
[1739345963381,0.01371437,96250.0,96249.0,0.00383563]
[1739345965675,0.01215562,96250.0,96249.0,0.00383563]
[1739345967775,0.16354922,96260.0,96249.0,0.00383563]
[1739345968179,0.16354922,96260.0,96254.0,0.00183563]
[1739345968384,0.18430083,96262.0,96254.0,0.00183563]
[1739345969082,0.01,96260.0,96254.0,0.00183563]
[1739345969388,0.01,96260.0,96257.0,0.00183563]
[1739345969786,0.2108037,96260.0,96257.0,0.00183563]
[1739345970180,0.2108037,96260.0,96254.0,0.001]
[1739345970381,0.2108037,96260.0,96258.0,0.00183563]
[1739345970581,0.2208037,96260.0,96258.0,0.00183563]
[1739345971293,0.2178037,96260.0,96259.0,0.00183563]
[1739345971991,0.2078037,96260.0,96259.0,0.00183563]
[1739345972184,0.2118037,96260.0,96259.0,0.00183563]
[1739345972387,0.004,96260.0,96240.0,0.394]
[1739345972585,0.2078312,96247.0,96240.0,0.394]
[1739345973191,0.2078406,96242.0,96240.0,0.3608]
[1739345976190,0.2138406,96242.0,96240.0,0.3618]
[1739345976387,0.2138406,96242.0,96241.0,0.0314]
[1739345978491,0.2128406,96242.0,96241.0,0.0324]
[1739345984999,0.005,96242.0,96241.0,0.0324]
[1739345987300,0.005,96242.0,96241.0,0.001]
[1739346008015,0.005,96242.0,96234.0,0.3608]
[1739346008216,0.2078622,96232.0,96224.0,0.0308]
[1739346008515,0.2078773,96225.0,96224.0,0.0308]
[1739346010819,0.2078773,96225.0,96224.0,0.0338]
[1739346011915,0.2078773,96225.0,96224.0,0.005]
[1739346012118,0.43152,96232.0,96219.0,0.0613]
[1739346012416,0.5686881,96220.0,96215.0,0.0001559]
[1739346012721,0.2078967,96216.0,96215.0,0.0001559]
[1739346012919,0.5686967,96216.0,96215.0,0.0001559]
[1739346013121,0.5686967,96216.0,96207.0,0.0324]
[1739346013323,0.3608,96216.0,96176.0,0.07076]
[1739346013513,0.5687382,96197.0,96193.0,0.0316]
[1739346014218,0.5557382,96197.0,96193.0,0.0316]
[1739346014917,0.3478,96197.0,96193.0,0.0386]
[1739346015221,0.207944,96195.0,96193.0,0.0386]
[1739346016513,0.207944,96195.0,96193.0,0.0536]
[1739346017117,0.207944,96195.0,96193.0,0.0386]
[1739346017318,0.208944,96195.0,96193.0,0.0536]
[1739346019918,0.279464,96195.0,96193.0,0.0536]
[1739346020924,0.279464,96195.0,96193.0,0.022]
[1739346022723,0.3608,96194.0,96193.0,0.022]
[1739346023732,0.3608,96194.0,96189.0,0.0606]
[1739346023925,0.5707443,96194.0,96193.0,0.022]
[1739346024832,0.5697443,96194.0,96193.0,0.015]
[1739346025532,0.2079529,96190.0,96189.0,0.0806]
[1739346026235,0.3498,96192.0,96189.0,0.0666]
[1739346026629,0.2079616,96186.0,96185.0,0.0001559]
[1739346027239,0.1879616,96186.0,96185.0,0.0001559]
[1739346028325,0.1889616,96186.0,96185.0,0.0071559]
[1739346028738,0.1899616,96186.0,96185.0,0.0071559]
[1739346029423,0.2605216,96186.0,96185.0,0.0071559]
[1739346030029,0.002,96186.0,96185.0,0.0071559]
[1739346039965,0.001,96186.0,96185.0,0.0021559]
[1739346040155,0.002,96186.0,96185.0,0.0021559]
[1739346051770,0.2099616,96186.0,96185.0,0.0021559]
[1739346053868,0.2802816,96186.0,96185.0,0.0021559]
[1739346055372,0.2079854,96175.0,96174.0,0.0601]
[1739346055567,0.5687854,96175.0,96174.0,0.0601]
[1739346056769,0.5697854,96175.0,96174.0,0.0631]
[1739346056976,0.5707854,96175.0,96174.0,0.0631]
[1739346057567,0.5707854,96175.0,96174.0,0.003]
[1739346062875,0.2099854,96175.0,96174.0,0.003]
[1739346063087,0.001,96175.0,96174.0,0.002]
[1739346064576,0.001,96175.0,96174.0,0.2099875]
[1739346073084,0.001,96175.0,96174.0,0.2799875]
[1739346076186,0.0001559,96184.0,96183.0,0.2079681]
[1739346077483,0.0021559,96184.0,96183.0,0.2079681]
[1739346104302,0.3608,96190.0,96176.0,0.3608]
[1739346104498,0.08180051,96186.0,96183.0,0.207966]
[1739346104698,0.5687535,96190.0,96183.0,0.207966]
[1739346104894,0.5687535,96190.0,96184.0,0.2079655]
[1739346105207,0.3608,96190.0,96188.0,0.2079569]
[1739346105404,0.3618,96190.0,96188.0,0.2079569]
[1739346105597,0.3618,96190.0,96189.0,0.0934]
[1739346106199,0.3638,96190.0,96189.0,0.0934]
[1739346107196,0.3648,96190.0,96189.0,0.0934]
[1739346108205,0.3618,96190.0,96189.0,0.0934]
[1739346108401,0.3678,96190.0,96189.0,0.0934]
[1739346113802,0.007,96190.0,96189.0,0.0934]
[1739346123411,0.007,96190.0,96189.0,0.031]
[1739346126821,0.007,96190.0,96188.0,0.2079569]
[1739346127915,0.006,96190.0,96188.0,0.2079569]
[1739346128923,0.005,96190.0,96188.0,0.2079569]
[1739346129125,0.006,96190.0,96188.0,0.2079569]
[1739346130014,0.005,96190.0,96188.0,0.2079569]
[1739346130214,0.005,96190.0,96188.0,0.2089569]
[1739346130620,0.3608,96194.0,96188.0,0.001]
[1739346130824,0.3608,96194.0,96192.0,0.2079478]
[1739346131019,0.3608,96194.0,96188.0,0.001]
[1739346131219,0.207953,96190.0,96188.0,0.001]
[1739346131728,0.207953,96190.0,96184.0,0.2079646]
[1739346131917,0.3608,96185.0,96184.0,0.2079646]
[1739346134335,0.3628,96185.0,96184.0,0.2079646]
[1739346136228,0.207967,96184.0,96176.0,0.2079824]
[1739346136732,0.06968,96183.0,96176.0,0.2079824]
[1739346137634,0.06968,96183.0,96176.0,0.2089824]
[1739346137935,0.2776489,96183.0,96176.0,0.2089824]
[1739346138232,0.2786489,96183.0,96176.0,0.2089824]
[1739346138636,0.2079724,96181.0,96176.0,0.2089824]
[1739346139234,0.3608,96177.0,96176.0,0.2089824]
[1739346139536,0.3608,96177.0,96176.0,0.001]
[1739346140428,0.2069846,96176.0,96170.0,0.20502523]
[1739346140623,0.207987,96175.0,96170.0,0.20502523]
[1739346141335,0.2079892,96174.0,96170.0,0.20502523]
[1739346143732,0.3608,96171.0,96170.0,0.20502523]
[1739346144026,0.568794,96171.0,96170.0,0.20502523]
[1739346144434,0.2079983,96169.0,96168.0,0.0015595]
[1739346146343,0.5687983,96169.0,96168.0,0.0015595]
[1739346146840,0.3628,96169.0,96168.0,0.0015595]
[1739346149033,0.002,96169.0,96168.0,0.0015595]
[1739346149233,0.3628,96169.0,96168.0,0.0015595]
[1739346149643,0.17411504,96169.0,96168.0,0.0015595]
[1739346151435,0.17411504,96169.0,96165.0,0.0001559]
[1739346152644,0.17511504,96169.0,96165.0,0.0001559]
[1739346152836,0.17611504,96169.0,96165.0,0.0011559]
[1739346153436,0.2080005,96168.0,96165.0,0.0011559]
[1739346153637,0.2080037,96167.0,96165.0,0.0011559]
[1739346155843,0.2090037,96167.0,96165.0,0.0011559]
[1739346156337,0.2100037,96167.0,96165.0,0.0011559]
[1739346158847,0.002,96167.0,96165.0,0.209161]
[1739346159347,0.002,96167.0,96166.0,0.0623]
[1739346159547,0.002,96167.0,96166.0,0.0938]
[1739346161945,0.002,96167.0,96166.0,0.0948]
[1739346186062,0.002,96167.0,96166.0,0.001]
[1739346187862,0.2080179,96160.0,96157.0,0.00121938]
[1739346188163,0.43048,96159.0,96157.0,0.00121938]
[1739346188366,0.6385013,96159.0,96157.0,0.00121938]
[1739346189062,0.6385013,96159.0,96157.0,0.00221938]
[1739346189362,0.6385013,96159.0,96157.0,0.001]
[1739346189565,0.6395013,96159.0,96157.0,0.001]
[1739346190760,0.0319,96158.0,96157.0,0.001]
[1739346191759,0.0319,96158.0,96148.0,0.00015599]
[1739346192070,0.2080287,96155.0,96148.0,0.00015599]
[1739346192870,0.19650102,96158.0,96148.0,0.00015599]
[1739346193165,0.2080416,96149.0,96148.0,0.00015599]
[1739346193368,0.2777216,96149.0,96148.0,0.00015599]
[1739346194669,0.2787216,96149.0,96148.0,0.00015599]
[1739346194869,0.2797216,96149.0,96148.0,0.00015599]
[1739346196371,0.2080481,96146.0,96135.0,0.208071]
[1739346196572,0.2080481,96146.0,96136.0,0.208069]
[1739346197373,0.2090481,96146.0,96136.0,0.208069]
[1739346197571,0.2110481,96146.0,96136.0,0.20822499]
[1739346198965,0.2110481,96146.0,96139.0,0.2080621]
[1739346200068,0.2110481,96146.0,96136.0,0.00015599]
[1739346200271,0.5688676,96137.0,96136.0,0.00015599]
[1739346200468,0.6385476,96137.0,96136.0,0.00015599]
[1739346202178,0.2080719,96135.0,96134.0,0.0944]
[1739346202572,0.2080759,96134.0,96123.0,0.2080971]
[1739346202772,0.16360102,96133.0,96123.0,0.2080971]
[1739346202974,0.08180051,96133.0,96123.0,0.2080971]
[1739346203570,0.28987881,96133.0,96123.0,0.2080971]
[1739346203770,0.37167932,96133.0,96123.0,0.2080971]
[1739346203970,0.16360102,96133.0,96123.0,0.2080971]
[1739346204275,0.2080793,96132.0,96123.0,0.2080971]
[1739346205171,0.2080825,96131.0,96123.0,0.2080971]
[1739346206878,0.2090825,96131.0,96123.0,0.2080971]
[1739346207074,0.2100825,96131.0,96123.0,0.2080971]
[1739346208674,0.2100825,96131.0,96120.0,0.3608]
[1739346208874,0.2100825,96131.0,96125.0,0.208093]
[1739346211779,0.06968,96130.0,96129.0,0.2080829]
[1739346212287,0.002,96131.0,96129.0,0.2080829]
[1739346212879,0.001,96131.0,96129.0,0.2080829]
[1739346213077,0.003,96130.0,96129.0,0.2080829]
[1739346213585,0.002,96130.0,96129.0,0.2080829]
[1739346213779,0.003,96131.0,96129.0,0.2080829]
[1739346214284,0.001,96130.0,96129.0,0.2080829]
[1739346215382,0.003,96130.0,96129.0,0.2080829]
[1739346215981,0.002,96130.0,96129.0,0.2080829]
[1739346216584,0.003,96130.0,96129.0,0.2080829]
[1739346253611,0.003,96130.0,96125.0,0.0306]
[1739346254806,0.002,96130.0,96125.0,0.0306]
[1739346255601,0.001,96130.0,96125.0,0.0306]
[1739346255805,0.002,96130.0,96125.0,0.0306]
[1739346256203,0.2100833,96130.0,96125.0,0.0306]
[1739346257611,0.2080913,96126.0,96125.0,0.0306]
[1739346259213,0.2090913,96126.0,96125.0,0.0306]
[1739346259415,0.2100913,96126.0,96125.0,0.0306]
[1739346265821,0.002,96126.0,96125.0,0.0306]
[1739346270025,0.003,96126.0,96125.0,0.0306]
[1739346275421,0.00015599,96135.0,96134.0,0.208074]
[1739346276630,0.00315599,96135.0,96134.0,0.208074]
[1739346283936,0.00315599,96135.0,96134.0,0.21837691]
[1739346288041,0.08180051,96144.0,96134.0,0.01030291]
[1739346288241,0.2080551,96143.0,96138.0,0.2080633]
[1739346288537,0.0696,96147.0,96138.0,0.2080633]
[1739346289039,0.001,96144.0,96131.0,0.3608]
[1739346289236,0.003,96144.0,96143.0,0.3608]
[1739346289642,0.003,96144.0,96143.0,0.3913]
[1739346289833,0.001,96144.0,96143.0,0.4223]
[1739346290038,0.002,96147.0,96143.0,0.4223]
[1739346291047,0.002,96147.0,96145.0,0.2080502]
[1739346291541,0.001,96147.0,96145.0,0.2080502]
[1739346291837,0.00156052,96151.0,96150.0,0.2080394]
[1739346293143,0.00256052,96151.0,96150.0,0.2110394]
[1739346305550,0.08180051,96160.0,96150.0,0.2110394]
[1739346306143,0.00105609,96163.0,96150.0,0.2110394]
[1739346306746,0.08180051,96160.0,96150.0,0.2110394]
[1739346306962,0.08180051,96160.0,96150.0,0.2090394]
[1739346307147,0.08180051,96160.0,96150.0,0.2100394]
[1739346307352,0.16360102,96160.0,96150.0,0.2100394]
[1739346307754,0.00115599,96152.0,96150.0,0.2090394]
[1739346310050,0.00115599,96152.0,96151.0,0.3608]
[1739346311157,0.00015599,96152.0,96151.0,0.3608]
[1739346311358,0.00115599,96152.0,96151.0,0.3608]
[1739346312255,0.00115599,96152.0,96151.0,0.3618]
[1739346314361,0.20919109,96152.0,96151.0,0.3618]
[1739346314551,0.20919109,96152.0,96151.0,0.001]
[1739346324366,0.2080552,96143.0,96137.0,0.2080664]
[1739346324566,0.2776152,96143.0,96137.0,0.2080664]
[1739346325063,0.3098152,96143.0,96137.0,0.2080664]
[1739346325467,0.3098152,96143.0,96130.0,0.2080815]
[1739346325664,0.3098152,96143.0,96141.0,0.00115599]
[1739346325665,0.3108152,96143.0,96141.0,0.00115599]
[1739346327569,0.2796152,96143.0,96141.0,0.00115599]
[1739346328563,0.2796152,96143.0,96141.0,0.00015599]
[1739346332170,0.06956,96142.0,96141.0,0.00015599]
[1739346333963,0.07156,96142.0,96141.0,0.00015599]
[1739346334658,0.07156,96142.0,96126.0,0.20512267]
[1739346334862,0.08180051,96136.0,96128.0,0.2080861]
[1739346335070,0.16360102,96140.0,96128.0,0.2080861]
[1739346335565,0.2081095,96118.0,96112.0,0.01050226]
[1739346335769,0.42936,96117.0,96110.0,0.2081246]
[1739346335968,0.42936,96117.0,96106.0,0.0936]
[1739346336270,0.2081275,96110.0,96106.0,0.0936]
[1739346336464,0.08180051,96116.0,96106.0,0.0936]
[1739346337063,0.08180051,96116.0,96111.0,0.2081233]
[1739346337372,0.2081217,96112.0,96110.0,0.001]
[1739346338473,0.001,96112.0,96106.0,0.0936]
[1739346338675,0.3608,96109.0,96106.0,0.0936]
[1739346339768,0.3618,96109.0,96106.0,0.0936]
[1739346339968,0.001,96109.0,96106.0,0.3017342]
[1739346341764,0.003,96109.0,96106.0,0.3017342]
[1739346346365,0.003,96109.0,96107.0,0.2081306]
[1739346347577,0.002,96109.0,96107.0,0.2081306]
[1739346352373,0.002,96109.0,96105.0,0.00015599]
[1739346352575,0.2081346,96106.0,96105.0,0.00015599]
[1739346368384,0.5689346,96106.0,96105.0,0.00015599]
[1739346372598,0.3608,96106.0,96105.0,0.20829279]
[1739346373996,0.43032,96116.0,96111.0,0.2081227]
[1739346374189,0.43032,96116.0,96112.0,0.0947]
[1739346374897,0.2081081,96119.0,96113.0,0.2081195]
[1739346375088,0.005,96116.0,96113.0,0.2081195]
[1739346375493,0.007,96116.0,96113.0,0.2081195]
[1739346375895,0.004,96116.0,96113.0,0.2081195]
[1739346376690,0.006,96116.0,96113.0,0.2081195]
[1739346377596,0.002,96116.0,96113.0,0.2081195]
[1739346377899,0.008,96116.0,96113.0,0.2081195]
[1739346378096,0.008,96116.0,96114.0,0.2081163]
[1739346378498,0.007,96116.0,96114.0,0.2081163]
[1739346378886,0.008,96116.0,96114.0,0.2081163]
[1739346379195,0.003,96116.0,96114.0,0.2081163]
[1739346379494,0.008,96116.0,96114.0,0.2081163]
[1739346379894,0.005,96116.0,96114.0,0.2081163]
[1739346380094,0.007,96116.0,96114.0,0.2081163]
[1739346383305,0.19436908,96124.0,96114.0,0.2081163]
[1739346384204,0.40246558,96124.0,96114.0,0.2081163]
[1739346384407,0.40746558,96124.0,96114.0,0.2081163]
[1739346384897,0.40946558,96124.0,96114.0,0.2081163]
[1739346387404,0.4196386,96124.0,96114.0,0.2081163]
[1739346389909,0.2080986,96123.0,96114.0,0.2081163]
[1739346391212,0.2120986,96123.0,96114.0,0.2091163]
[1739346391407,0.2140986,96123.0,96114.0,0.2091163]
[1739346393513,0.2100986,96123.0,96114.0,0.2081163]
[1739346393711,0.2110986,96123.0,96114.0,0.2081163]
[1739346393909,0.003,96123.0,96114.0,0.2081163]
[1739346394207,0.2081031,96121.0,96114.0,0.2081163]
[1739346395211,0.2081031,96121.0,96114.0,0.2091163]
[1739346396211,0.2091031,96121.0,96114.0,0.2091163]
[1739346396804,0.2091031,96121.0,96114.0,0.2081163]
[1739346397022,0.2111031,96121.0,96114.0,0.2081163]
[1739346397415,0.003,96121.0,96116.0,0.2081124]
[1739346397620,0.001,96121.0,96116.0,0.2081124]
[1739346397821,0.004,96121.0,96116.0,0.2081124]
[1739346398815,0.003,96121.0,96116.0,0.2081124]
[1739346399023,0.004,96121.0,96116.0,0.2081124]
[1739346400026,0.001,96121.0,96116.0,0.2081124]
[1739346400230,0.005,96121.0,96116.0,0.2091124]
[1739346401230,0.001,96121.0,96116.0,0.2081124]
[1739346401531,0.003,96121.0,96116.0,0.2081124]
[1739346402530,0.2111036,96121.0,96112.0,0.0947]
[1739346403021,0.2121036,96121.0,96112.0,0.0947]
[1739346403221,0.2121036,96121.0,96112.0,0.0317]
[1739346403826,0.2081053,96120.0,96112.0,0.0317]
[1739346405330,0.3608,96115.0,96108.0,0.01056689]
[1739346405629,0.3608,96115.0,96105.0,0.00015599]
[1739346407131,0.3608,96115.0,96105.0,0.01055419]
[1739346407627,0.3608,96115.0,96108.0,0.001]
[1739346408234,0.3608,96115.0,96105.0,0.01555419]
[1739346408529,0.3608,96115.0,96105.0,0.22369099]
[1739346408731,0.3608,96115.0,96105.0,0.22169099]
[1739346408931,0.3608,96115.0,96108.0,0.001]
[1739346409738,0.3608,96115.0,96108.0,0.002]
[1739346410925,0.3608,96115.0,96108.0,0.001]
[1739346411126,0.3608,96115.0,96105.0,0.22069099]
[1739346411529,0.3608,96115.0,96105.0,0.21869099]
[1739346412131,0.3608,96115.0,96105.0,0.21969099]
[1739346412635,0.3608,96115.0,96105.0,0.01155419]
[1739346412831,0.3608,96115.0,96106.0,0.2081336]
[1739346413931,0.3608,96115.0,96106.0,0.2101336]
[1739346414731,0.3608,96115.0,96106.0,0.2111336]
[1739346416034,0.2081139,96116.0,96106.0,0.2111336]
[1739346417140,0.2081139,96116.0,96106.0,0.2091336]
[1739346417330,0.2081139,96116.0,96106.0,0.2111336]
[1739346417536,0.2081139,96116.0,96106.0,0.003]
[1739346417738,0.2081139,96116.0,96108.0,0.2081299]
[1739346417932,0.2081139,96116.0,96109.0,0.2081276]
[1739346420034,0.2091139,96116.0,96109.0,0.2081276]
[1739346420736,0.001,96116.0,96105.0,0.01055419]
[1739346420938,0.001,96116.0,96113.0,0.2081176]
[1739346421644,0.001,96116.0,96115.0,0.2081151]
[1739346422343,0.001,96116.0,96105.0,0.01455419]
[1739346422645,0.08192466,96115.0,96105.0,0.01455419]
[1739346422948,0.08192466,96115.0,96105.0,0.01055419]
[1739346423645,0.08192466,96115.0,96105.0,0.01555419]
[1739346424247,0.08192466,96115.0,96109.0,0.2081269]
[1739346424441,0.002,96116.0,96109.0,0.2081269]
[1739346425247,0.15140466,96120.0,96109.0,0.2081269]
[1739346425746,0.15140466,96120.0,96109.0,0.2091269]
[1739346425946,0.15140466,96120.0,96109.0,0.2101269]
[1739346426744,0.15240466,96120.0,96109.0,0.2091269]
[1739346427449,0.15240466,96120.0,96109.0,0.2081269]
[1739346430253,0.15240466,96120.0,96110.0,0.2081254]
[1739346430951,0.06948,96119.0,96110.0,0.2081254]
[1739346431552,0.06948,96119.0,96110.0,0.2091254]
[1739346432244,0.06948,96119.0,96110.0,0.2121254]
[1739346432854,0.06948,96119.0,96110.0,0.2131254]
[1739346434054,0.06948,96119.0,96110.0,0.2091254]
[1739346434651,0.06948,96119.0,96112.0,0.2081207]
[1739346435753,0.07148,96119.0,96112.0,0.2081207]
[1739346438451,0.07048,96119.0,96112.0,0.2081207]
[1739346440258,0.07148,96119.0,96112.0,0.2081207]
[1739346441154,0.07048,96119.0,96112.0,0.2081207]
[1739346443363,0.07148,96119.0,96112.0,0.2081207]
[1739346444258,0.07048,96119.0,96112.0,0.2081207]
[1739346444854,0.06948,96119.0,96112.0,0.2081207]
[1739346445061,0.07148,96119.0,96112.0,0.2081207]
[1739346445768,0.002,96119.0,96117.0,0.568909]
[1739346446061,0.002,96119.0,96118.0,0.0951]
[1739346446658,0.001,96119.0,96118.0,0.3032086]
[1739346447564,0.005,96119.0,96118.0,0.3042086]
[1739346448265,0.007,96119.0,96118.0,0.3042086]
[1739346448464,0.007,96119.0,96118.0,0.31737481]
[1739346450465,0.003,96119.0,96118.0,0.32437481]
[1739346451262,0.002,96119.0,96118.0,0.31637481]
[1739346451463,0.002,96119.0,96118.0,0.31937481]
[1739346452059,0.002,96119.0,96118.0,0.31637481]
[1739346452766,0.44272466,96128.0,96118.0,0.31637481]
[1739346452951,0.003,96119.0,96118.0,0.31637481]
[1739346453565,0.44272466,96128.0,96118.0,0.31637481]
[1739346453765,0.44272466,96128.0,96118.0,0.31837481]
[1739346453766,0.01286729,96125.0,96118.0,0.31837481]
[1739346454066,0.00015599,96125.0,96118.0,0.31837481]
[1739346454364,0.00015599,96125.0,96118.0,0.31737481]
[1739346454563,0.00015599,96125.0,96118.0,0.002]
[1739346454960,0.00015599,96125.0,96118.0,0.001]
[1739346455165,0.00015599,96125.0,96118.0,0.002]
[1739346455670,0.00015599,96125.0,96118.0,0.001]
[1739346455869,0.00015599,96125.0,96110.0,0.2081258]
[1739346456066,0.16384932,96120.0,96118.0,0.001]
[1739346456272,0.01322464,96125.0,96118.0,0.001]
[1739346456567,0.01322464,96125.0,96110.0,0.2081258]
[1739346456870,0.16384932,96120.0,96112.0,0.208121]
[1739346458673,0.16384932,96120.0,96112.0,0.210121]
[1739346459567,0.16384932,96120.0,96112.0,0.213121]
[1739346462867,0.16384932,96120.0,96113.0,0.2081182]
[1739346463189,0.16384932,96120.0,96115.0,0.2081144]
[1739346464175,0.16384932,96120.0,96116.0,0.2081114]
[1739346464771,0.3608,96123.0,96116.0,0.2081114]
[1739346465876,0.22131974,96125.0,96116.0,0.2081114]
[1739346466065,0.3608,96123.0,96116.0,0.2091114]
[1739346467273,0.3608,96123.0,96117.0,0.2081096]
[1739346467671,0.3608,96123.0,96116.0,0.001]
[1739346467977,0.3608,96123.0,96118.0,0.208107]
[1739346468578,0.3618,96123.0,96119.0,0.2081054]
[1739346469285,0.3628,96123.0,96119.0,0.2081054]
[1739346471178,0.002,96123.0,96119.0,0.2081054]
[1739346472083,0.002,96123.0,96120.0,0.2081032]
[1739346472782,0.002,96123.0,96109.0,0.3608]
[1739346472783,0.002,96123.0,96121.0,0.2081011]
[1739346473287,0.003,96123.0,96121.0,0.2081011]
[1739346474285,0.004,96123.0,96121.0,0.2081011]
[1739346475478,0.005,96123.0,96121.0,0.2081011]
[1739346476192,0.004,96123.0,96121.0,0.2081011]
[1739346477795,0.001,96123.0,96121.0,0.2081011]
[1739346477998,0.004,96123.0,96121.0,0.2081011]
[1739346478388,0.003,96123.0,96121.0,0.2081011]
[1739346478694,0.002,96123.0,96122.0,0.2080985]
[1739346480586,0.003,96123.0,96122.0,0.2080985]
[1739346480787,0.001,96123.0,96122.0,0.2080985]
[1739346480992,0.004,96123.0,96122.0,0.2080985]
[1739346481597,0.00015599,96125.0,96122.0,0.2080985]
[1739346481900,0.002,96123.0,96122.0,0.2080985]
[1739346482695,0.00015599,96125.0,96122.0,0.2209899]
[1739346482895,0.00215599,96125.0,96122.0,0.2080985]
[1739346483098,0.00215599,96125.0,96117.0,0.208109]
[1739346484299,0.00215599,96125.0,96117.0,0.209109]
[1739346484492,0.002,96123.0,96117.0,0.209109]
[1739346485090,0.002,96123.0,96117.0,0.208109]
[1739346485291,0.00215599,96125.0,96117.0,0.208109]
[1739346485696,0.33379909,96127.0,96117.0,0.208109]
[1739346486396,0.54188889,96127.0,96117.0,0.208109]
[1739346486908,0.2080918,96126.0,96117.0,0.208109]
[1739346487309,0.002,96123.0,96117.0,0.208109]
[1739346487508,0.002,96123.0,96117.0,0.209109]
[1739346488006,0.2100918,96126.0,96117.0,0.208109]
[1739346489307,0.002,96123.0,96117.0,0.208109]
[1739346490801,0.2080918,96126.0,96117.0,0.208109]
[1739346490998,0.2080945,96125.0,96117.0,0.208109]
[1739346491196,0.2080973,96124.0,96117.0,0.208109]
[1739346491397,0.001,96123.0,96117.0,0.208109]
[1739346491602,0.005,96123.0,96117.0,0.208109]
[1739346492310,0.2090995,96123.0,96117.0,0.208109]
[1739346492806,0.3608,96118.0,96106.0,0.0954]
[1739346493012,0.2081224,96112.0,96106.0,0.3035324]
[1739346494206,0.2081259,96110.0,96106.0,0.31639911]
[1739346494406,0.2081259,96110.0,96106.0,0.31839911]
[1739346494809,0.2081259,96110.0,96106.0,0.32339911]
[1739346495511,0.2091259,96110.0,96106.0,0.32339911]
[1739346501521,0.2091259,96110.0,96107.0,0.2081311]
[1739346502110,0.2091259,96110.0,96109.0,0.2081279]
[1739346503121,0.2081259,96110.0,96109.0,0.2081279]
[1739346504017,0.5689117,96117.0,96110.0,0.2081251]
[1739346505624,0.5689117,96117.0,96111.0,0.2081222]
[1739346506726,0.5689117,96117.0,96112.0,0.2081197]
[1739346506922,0.3608,96117.0,96115.0,0.2081146]
[1739346508032,0.3628,96117.0,96115.0,0.2081146]
[1739346509933,0.3618,96117.0,96115.0,0.2081146]
[1739346510734,0.3628,96117.0,96115.0,0.2081146]
[1739346512633,0.3628,96117.0,96116.0,0.00142209]
[1739346513132,0.3628,96117.0,96115.0,0.2081146]
[1739346513833,0.3648,96117.0,96106.0,0.10826671]
[1739346514028,0.08192466,96116.0,96109.0,0.2081274]
[1739346514223,0.3648,96117.0,96109.0,0.2081274]
[1739346514431,0.3638,96117.0,96109.0,0.2081274]
[1739346515624,0.3608,96117.0,96109.0,0.2081274]
[1739346515831,0.3628,96117.0,96110.0,0.2081243]
[1739346516423,0.3608,96117.0,96110.0,0.2081243]
[1739346517040,0.3608,96117.0,96110.0,0.2091243]
[1739346517229,0.3608,96117.0,96110.0,0.2111243]
[1739346523639,0.5689118,96117.0,96110.0,0.2111243]
[1739346523842,0.3608,96117.0,96110.0,0.003]
[1739346524035,0.2081224,96112.0,96110.0,0.003]
[1739346530931,0.2081322,96107.0,96105.0,0.00015599]
[1739346531345,0.06936,96106.0,96105.0,0.00015599]
[1739346532151,0.06936,96106.0,96105.0,0.00515599]
[1739346532338,0.06936,96106.0,96105.0,0.00615599]
[1739346532838,0.06936,96106.0,96105.0,0.00015599]
[1739346533038,0.06936,96106.0,96105.0,0.00415599]
[1739346534248,0.18032297,96106.0,96105.0,0.00415599]
[1739346537149,0.19274728,96106.0,96105.0,0.00415599]
[1739346546952,0.06936,96106.0,96105.0,0.00415599]
[1739346549151,0.06936,96106.0,96105.0,0.00315599]
[1739346549353,0.06936,96106.0,96105.0,0.00415599]
[1739346549957,0.06936,96106.0,96105.0,0.00315599]
[1739346550850,0.06936,96106.0,96105.0,0.00215599]
[1739346552048,0.29046,96106.0,96105.0,0.00215599]
[1739346558257,0.2081864,96082.0,96081.0,0.0016]
[1739346558448,0.2081864,96082.0,96075.0,0.0015613]
[1739346558449,0.208195,96079.0,96075.0,0.0015613]
[1739346559156,0.2081994,96076.0,96074.0,0.0961]
[1739346559355,0.2082167,96068.0,96067.0,0.00015607]
[1739346560463,0.2082167,96068.0,96067.0,0.00215607]
[1739346560761,0.2082167,96068.0,96067.0,0.00515607]
[1739346565167,0.06936,96071.0,96067.0,0.00515607]
[1739346565553,0.08192466,96077.0,96067.0,0.21337417]
[1739346565759,0.06936,96076.0,96071.0,0.3608]
[1739346565958,0.2775536,96079.0,96071.0,0.3608]
[1739346567165,0.2775536,96079.0,96071.0,0.5690084]
[1739346573065,0.06936,96079.0,96071.0,0.5690084]
[1739346573264,0.12494216,96081.0,96077.0,0.2081958]
[1739346573475,0.3608,96082.0,96078.0,0.0976]
[1739346574373,0.00015607,96087.0,96078.0,0.0976]
[1739346575472,0.00015607,96087.0,96078.0,0.3057939]
[1739346576174,0.002,96081.0,96078.0,0.3057939]
[1739346576874,0.00015607,96087.0,96078.0,0.3077939]
[1739346577575,0.00015607,96087.0,96078.0,0.3067939]
[1739346577777,0.001,96081.0,96078.0,0.3067939]
[1739346578087,0.001,96081.0,96078.0,0.6675939]
[1739346579082,0.001,96081.0,96078.0,0.6665939]
[1739346579787,0.00115607,96087.0,96078.0,0.6665939]
[1739346580586,0.00015607,96087.0,96078.0,0.6665939]
[1739346580788,0.001,96081.0,96078.0,0.6665939]
[1739346582288,0.20933207,96087.0,96078.0,0.6665939]
[1739346582888,0.001,96081.0,96078.0,0.6665939]
[1739346583387,0.21133207,96087.0,96078.0,0.6665939]
[1739346583388,0.20833207,96087.0,96078.0,0.6665939]
[1739346583598,0.21533207,96087.0,96078.0,0.6675939]
[1739346583982,0.21333207,96087.0,96078.0,0.6675939]
[1739346584181,0.007,96081.0,96078.0,0.6675939]
[1739346585689,0.007,96081.0,96078.0,0.3067939]
[1739346586076,0.21533207,96087.0,96078.0,0.3067939]
[1739346586783,0.007,96081.0,96078.0,0.3067939]
[1739346587191,0.005,96081.0,96078.0,0.0986]
[1739346589096,0.2081856,96083.0,96078.0,0.0654]
[1739346589392,0.001,96081.0,96078.0,0.0664]